{"text_format":"3","workbook":"xlsx","n_sheets":3,"sheets":["سجل المسافة المقطوعة بالميل","بيانات السجل","الحسابات"],"not_rendered":{"charts":1,"defined_names":17},"read":"whole","date_system":"1900"}

{"sheet":"سجل المسافة المقطوعة بالميل","index":0,"n_rows":28,"n_cols":5,"rows_kept":28,"merged":[[0,1,1,4]]}
[null,"سجل المسافة المقطوعة بالميل"]
{"$rows_empty":9}
[null,null,"عدد الأميال",null,"إجمالي"]
[null,null,"القابلة للتعويض",null,"التعويض"]
[]
[]
[]
[]
[null,null,"2012-05-01",null,"2012-05-10"]
[]
[null,null,"تاريخ بدء الفترة",null,"تاريخ انتهاء الفترة"]
[]
[]
[]
[]
[]
[]
[null,null,54,null,{"v":9800,"d":"9,800"}]
[]
[null,null,"ر.س. لكل كيلومتر",null,"أودومتر الوقود السابق"]

{"sheet":"بيانات السجل","index":1,"n_rows":19,"n_cols":15,"rows_kept":19,"merged":[[0,1,1,4]]}
[null,"سجل المسافة المقطوعة بالميل"]
[{"$nulls":14}," "]
[]
[]
[null,"‎التاريخ","النشاط","قراءة عداد المسافات 1","الموقع","قراءة عداد المسافات 2","الوجهة","التعويض","عدد الجالونات","التكلفة","الأميال","ميل لكل جالون","¢/ميل","ملاحظات"]
[null,"2012-05-01","الرحلة",{"v":10123,"d":"10,123"},"الشارع الرئيسي",{"v":10130,"d":"10,130"},null,null,15.56,{"v":64.11,"d":" 64ر.س.‏"},{"$f":"miles","v":7},{"$f":"IF(OR(LEN(data[[#This Row],[قراءة عداد المسافات 2]]),data[[#This Row],[قراءة عداد المسافات 1]]=\"\"),\"\",IFERROR(data[[#This Row],[الأميال]]/data[[#This Row],[عدد الجالونات]],\"\"))","v":""},{"$f":"IF(data[[#This Row],[ميل لكل جالون]]=\"\",\"\",100*data[[#This Row],[التكلفة]]/data[[#This Row],[الأميال]])","v":""}]
[null,"2012-05-01","الرحلة",{"v":10130,"d":"10,130"},"المكتب",{"v":10200,"d":"10,200"},"شارع التحلية","نعم",null,"",{"$f":"miles","v":70},{"$f":"IF(OR(LEN(data[[#This Row],[قراءة عداد المسافات 2]]),data[[#This Row],[قراءة عداد المسافات 1]]=\"\"),\"\",IFERROR(data[[#This Row],[الأميال]]/data[[#This Row],[عدد الجالونات]],\"\"))","v":""},{"$f":"IF(data[[#This Row],[ميل لكل جالون]]=\"\",\"\",100*data[[#This Row],[التكلفة]]/data[[#This Row],[الأميال]])","v":""}]
[null,"2012-05-01","الرحلة",{"v":10200,"d":"10,200"},"الريف",{"v":10285,"d":"10,285"},"المكتب","نعم",null,"",{"$f":"miles","v":85},{"$f":"IF(OR(LEN(data[[#This Row],[قراءة عداد المسافات 2]]),data[[#This Row],[قراءة عداد المسافات 1]]=\"\"),\"\",IFERROR(data[[#This Row],[الأميال]]/data[[#This Row],[عدد الجالونات]],\"\"))","v":""},{"$f":"IF(data[[#This Row],[ميل لكل جالون]]=\"\",\"\",100*data[[#This Row],[التكلفة]]/data[[#This Row],[الأميال]])","v":""}]
[null,"2012-05-02","الرحلة",{"v":10285,"d":"10,285"},"المكتب",{"v":10450,"d":"10,450"},"غرب المدينة","نعم",null,"",{"$f":"miles","v":165},{"$f":"IF(OR(LEN(data[[#This Row],[قراءة عداد المسافات 2]]),data[[#This Row],[قراءة عداد المسافات 1]]=\"\"),\"\",IFERROR(data[[#This Row],[الأميال]]/data[[#This Row],[عدد الجالونات]],\"\"))","v":""},{"$f":"IF(data[[#This Row],[ميل لكل جالون]]=\"\",\"\",100*data[[#This Row],[التكلفة]]/data[[#This Row],[الأميال]])","v":""}]
[null,"2012-05-02","الوقود",{"v":10450,"d":"10,450"},"شرق المدينة",{"$nulls":3},{"v":11.2,"d":"11.20"},{"v":55.42,"d":" 55ر.س.‏"},{"$f":"miles","v":650},{"$f":"IF(OR(LEN(data[[#This Row],[قراءة عداد المسافات 2]]),data[[#This Row],[قراءة عداد المسافات 1]]=\"\"),\"\",IFERROR(data[[#This Row],[الأميال]]/data[[#This Row],[عدد الجالونات]],\"\"))","v":{"v":58.03571428571429,"d":"58.0"}},{"$f":"IF(data[[#This Row],[ميل لكل جالون]]=\"\",\"\",100*data[[#This Row],[التكلفة]]/data[[#This Row],[الأميال]])","v":{"v":8.526153846153846,"d":"8.5"}}]
[null,"2012-05-02","الرحلة",{"v":10500,"d":"10,500"},"غرب المدينة",{"v":10518,"d":"10,518"},"المكتب","نعم",null,"",{"$f":"miles","v":18},{"$f":"IF(OR(LEN(data[[#This Row],[قراءة عداد المسافات 2]]),data[[#This Row],[قراءة عداد المسافات 1]]=\"\"),\"\",IFERROR(data[[#This Row],[الأميال]]/data[[#This Row],[عدد الجالونات]],\"\"))","v":""},{"$f":"IF(data[[#This Row],[ميل لكل جالون]]=\"\",\"\",100*data[[#This Row],[التكلفة]]/data[[#This Row],[الأميال]])","v":""}]
[null,"2012-05-03","الرحلة",{"v":10518,"d":"10,518"},"المكتب",{"v":10745,"d":"10,745"},"المكتب","نعم",null,"",{"$f":"miles","v":227},{"$f":"IF(OR(LEN(data[[#This Row],[قراءة عداد المسافات 2]]),data[[#This Row],[قراءة عداد المسافات 1]]=\"\"),\"\",IFERROR(data[[#This Row],[الأميال]]/data[[#This Row],[عدد الجالونات]],\"\"))","v":""},{"$f":"IF(data[[#This Row],[ميل لكل جالون]]=\"\",\"\",100*data[[#This Row],[التكلفة]]/data[[#This Row],[الأميال]])","v":""}]
[null,"2012-05-04","الوقود",{"v":10745,"d":"10,745"},"الشارع الرئيسي",{"$nulls":3},{"v":16.6,"d":"16.60"},{"v":69.24,"d":" 69ر.س.‏"},{"$f":"miles","v":295},{"$f":"IF(OR(LEN(data[[#This Row],[قراءة عداد المسافات 2]]),data[[#This Row],[قراءة عداد المسافات 1]]=\"\"),\"\",IFERROR(data[[#This Row],[الأميال]]/data[[#This Row],[عدد الجالونات]],\"\"))","v":{"v":17.771084337349397,"d":"17.8"}},{"$f":"IF(data[[#This Row],[ميل لكل جالون]]=\"\",\"\",100*data[[#This Row],[التكلفة]]/data[[#This Row],[الأميال]])","v":{"v":23.471186440677965,"d":"23.5"}}]
[null,"2012-05-04","الرحلة",{"v":10745,"d":"10,745"},"المكتب",{"v":10800,"d":"10,800"},"وسط المدينة","نعم",null,"",{"$f":"miles","v":55},{"$f":"IF(OR(LEN(data[[#This Row],[قراءة عداد المسافات 2]]),data[[#This Row],[قراءة عداد المسافات 1]]=\"\"),\"\",IFERROR(data[[#This Row],[الأميال]]/data[[#This Row],[عدد الجالونات]],\"\"))","v":""},{"$f":"IF(data[[#This Row],[ميل لكل جالون]]=\"\",\"\",100*data[[#This Row],[التكلفة]]/data[[#This Row],[الأميال]])","v":""}]
[null,"2012-05-04","الرحلة",{"v":10800,"d":"10,800"},"وسط المدينة",{"v":10875,"d":"10,875"},"المكتب","نعم",null,"",{"$f":"miles","v":75},{"$f":"IF(OR(LEN(data[[#This Row],[قراءة عداد المسافات 2]]),data[[#This Row],[قراءة عداد المسافات 1]]=\"\"),\"\",IFERROR(data[[#This Row],[الأميال]]/data[[#This Row],[عدد الجالونات]],\"\"))","v":""},{"$f":"IF(data[[#This Row],[ميل لكل جالون]]=\"\",\"\",100*data[[#This Row],[التكلفة]]/data[[#This Row],[الأميال]])","v":""}]
[null,"2012-05-07","الرحلة",{"v":10875,"d":"10,875"},"المكتب",{"v":10921,"d":"10,921"},"شارع الكرز","نعم",null,"",{"$f":"miles","v":46},{"$f":"IF(OR(LEN(data[[#This Row],[قراءة عداد المسافات 2]]),data[[#This Row],[قراءة عداد المسافات 1]]=\"\"),\"\",IFERROR(data[[#This Row],[الأميال]]/data[[#This Row],[عدد الجالونات]],\"\"))","v":""},{"$f":"IF(data[[#This Row],[ميل لكل جالون]]=\"\",\"\",100*data[[#This Row],[التكلفة]]/data[[#This Row],[الأميال]])","v":""}]
[null,"2012-05-07","الرحلة",{"v":10921,"d":"10,921"},"الريف",{"v":10969,"d":"10,969"},"المكتب","نعم",null,"",{"$f":"miles","v":48},{"$f":"IF(OR(LEN(data[[#This Row],[قراءة عداد المسافات 2]]),data[[#This Row],[قراءة عداد المسافات 1]]=\"\"),\"\",IFERROR(data[[#This Row],[الأميال]]/data[[#This Row],[عدد الجالونات]],\"\"))","v":""},{"$f":"IF(data[[#This Row],[ميل لكل جالون]]=\"\",\"\",100*data[[#This Row],[التكلفة]]/data[[#This Row],[الأميال]])","v":""}]
[null,"2012-05-09","الرحلة",{"v":10969,"d":"10,969"},"المكتب",{"v":11000,"d":"11,000"},"خارج المدينة","نعم",null,"",{"$f":"miles","v":31},{"$f":"IF(OR(LEN(data[[#This Row],[قراءة عداد المسافات 2]]),data[[#This Row],[قراءة عداد المسافات 1]]=\"\"),\"\",IFERROR(data[[#This Row],[الأميال]]/data[[#This Row],[عدد الجالونات]],\"\"))","v":""},{"$f":"IF(data[[#This Row],[ميل لكل جالون]]=\"\",\"\",100*data[[#This Row],[التكلفة]]/data[[#This Row],[الأميال]])","v":""}]
[null,"2012-05-09","الرحلة",{"v":11000,"d":"11,000"},"خارج المدينة",{"v":11100,"d":"11,100"},"الصفحة الرئيسية","لا",null,"",{"$f":"miles","v":100},{"$f":"IF(OR(LEN(data[[#This Row],[قراءة عداد المسافات 2]]),data[[#This Row],[قراءة عداد المسافات 1]]=\"\"),\"\",IFERROR(data[[#This Row],[الأميال]]/data[[#This Row],[عدد الجالونات]],\"\"))","v":""},{"$f":"IF(data[[#This Row],[ميل لكل جالون]]=\"\",\"\",100*data[[#This Row],[التكلفة]]/data[[#This Row],[الأميال]])","v":""}]

{"sheet":"الحسابات","index":2,"n_rows":69,"n_cols":13,"rows_kept":69,"hidden":true}
["*** يجب أن تظل هذه الورقة مخفية ***"]
[]
[]
[]
[]
[{"$nulls":8},{"$f":"OFFSET(I9,,secondAxis=\"ميل لكل جالون\")","v":"ميل لكل جالون"}]
[{"$nulls":12},2]
[{"$nulls":7},"الرحلة","الوقود","الوقود",null,"Second Axis:  ",{"$f":"REPT(\"ميل لكل جالون\",M7=1)&REPT(\"تكلفة الوقود\",M7=2)","v":"تكلفة الوقود"}]
[{"$nulls":7},"عدد الأميال المقطوعة","ميل لكل جالون","¢/ميل"]
[null,null,"عدد الأميال القابلة للتعويض  ",{"$f":"SUMIFS(data[الأميال],data[التعويض],\"نعم\",data[‎التاريخ],\">=\"&periodStart,data[‎التاريخ],\"<=\"&periodEnd)","v":820},null,1,{"$f":"periodStart","v":"2012-05-01"},{"$f":"SUMIFS(data[الأميال],data[‎التاريخ],G10,data[النشاط],$H$8)","v":162},{"$f":"IFERROR(AVERAGEIFS(data[ميل لكل جالون],data[‎التاريخ],G10,data[النشاط],$I$8),NA())","v":{"$error":"#N/A"}},{"$f":"IFERROR(AVERAGEIFS(data[¢/ميل],data[‎التاريخ],G10,data[النشاط],$J$8),NA())","v":{"$error":"#N/A"}}]
[null,null,"إجمالي التعويض:  ",{"$f":"D10*ReimbursementPerMile/100","v":{"v":442.8,"d":" 443 ر.س.‏"}},null,2,{"$f":"G10+1","v":"2012-05-02"},{"$f":"SUMIFS(data[الأميال],data[‎التاريخ],G11,data[النشاط],$H$8)","v":183},{"$f":"IFERROR(AVERAGEIFS(data[ميل لكل جالون],data[‎التاريخ],G11,data[النشاط],$I$8),NA())","v":{"v":58.03571428571429,"d":"58.0"}},{"$f":"IFERROR(AVERAGEIFS(data[¢/ميل],data[‎التاريخ],G11,data[النشاط],$J$8),NA())","v":{"v":8.526153846153846,"d":"8.5"}}]
[{"$nulls":5},3,"2012-05-03",{"$f":"SUMIFS(data[الأميال],data[‎التاريخ],G12,data[النشاط],$H$8)","v":227},{"$f":"IFERROR(AVERAGEIFS(data[ميل لكل جالون],data[‎التاريخ],G12,data[النشاط],$I$8),NA())","v":{"$error":"#N/A"}},{"$f":"IFERROR(AVERAGEIFS(data[¢/ميل],data[‎التاريخ],G12,data[النشاط],$J$8),NA())","v":{"$error":"#N/A"}}]
[{"$nulls":5},4,"2012-05-04",{"$f":"SUMIFS(data[الأميال],data[‎التاريخ],G13,data[النشاط],$H$8)","v":130},{"$f":"IFERROR(AVERAGEIFS(data[ميل لكل جالون],data[‎التاريخ],G13,data[النشاط],$I$8),NA())","v":{"v":17.771084337349397,"d":"17.8"}},{"$f":"IFERROR(AVERAGEIFS(data[¢/ميل],data[‎التاريخ],G13,data[النشاط],$J$8),NA())","v":{"v":23.471186440677965,"d":"23.5"}}]
[{"$nulls":5},5,"2012-05-05",{"$f":"SUMIFS(data[الأميال],data[‎التاريخ],G14,data[النشاط],$H$8)","v":0},{"$f":"IFERROR(AVERAGEIFS(data[ميل لكل جالون],data[‎التاريخ],G14,data[النشاط],$I$8),NA())","v":{"$error":"#N/A"}},{"$f":"IFERROR(AVERAGEIFS(data[¢/ميل],data[‎التاريخ],G14,data[النشاط],$J$8),NA())","v":{"$error":"#N/A"}}]
[{"$nulls":5},6,"2012-05-06",{"$f":"SUMIFS(data[الأميال],data[‎التاريخ],G15,data[النشاط],$H$8)","v":0},{"$f":"IFERROR(AVERAGEIFS(data[ميل لكل جالون],data[‎التاريخ],G15,data[النشاط],$I$8),NA())","v":{"$error":"#N/A"}},{"$f":"IFERROR(AVERAGEIFS(data[¢/ميل],data[‎التاريخ],G15,data[النشاط],$J$8),NA())","v":{"$error":"#N/A"}}]
[{"$nulls":5},7,"2012-05-07",{"$f":"SUMIFS(data[الأميال],data[‎التاريخ],G16,data[النشاط],$H$8)","v":94},{"$f":"IFERROR(AVERAGEIFS(data[ميل لكل جالون],data[‎التاريخ],G16,data[النشاط],$I$8),NA())","v":{"$error":"#N/A"}},{"$f":"IFERROR(AVERAGEIFS(data[¢/ميل],data[‎التاريخ],G16,data[النشاط],$J$8),NA())","v":{"$error":"#N/A"}}]
[{"$nulls":5},8,"2012-05-08",{"$f":"SUMIFS(data[الأميال],data[‎التاريخ],G17,data[النشاط],$H$8)","v":0},{"$f":"IFERROR(AVERAGEIFS(data[ميل لكل جالون],data[‎التاريخ],G17,data[النشاط],$I$8),NA())","v":{"$error":"#N/A"}},{"$f":"IFERROR(AVERAGEIFS(data[¢/ميل],data[‎التاريخ],G17,data[النشاط],$J$8),NA())","v":{"$error":"#N/A"}}]
[{"$nulls":5},9,"2012-05-09",{"$f":"SUMIFS(data[الأميال],data[‎التاريخ],G18,data[النشاط],$H$8)","v":131},{"$f":"IFERROR(AVERAGEIFS(data[ميل لكل جالون],data[‎التاريخ],G18,data[النشاط],$I$8),NA())","v":{"$error":"#N/A"}},{"$f":"IFERROR(AVERAGEIFS(data[¢/ميل],data[‎التاريخ],G18,data[النشاط],$J$8),NA())","v":{"$error":"#N/A"}}]
[{"$nulls":5},10,"2012-05-10",{"$f":"SUMIFS(data[الأميال],data[‎التاريخ],G19,data[النشاط],$H$8)","v":0},{"$f":"IFERROR(AVERAGEIFS(data[ميل لكل جالون],data[‎التاريخ],G19,data[النشاط],$I$8),NA())","v":{"$error":"#N/A"}},{"$f":"IFERROR(AVERAGEIFS(data[¢/ميل],data[‎التاريخ],G19,data[النشاط],$J$8),NA())","v":{"$error":"#N/A"}}]
[{"$nulls":5},11,"2012-05-11",{"$f":"SUMIFS(data[الأميال],data[‎التاريخ],G20,data[النشاط],$H$8)","v":0},{"$f":"IFERROR(AVERAGEIFS(data[ميل لكل جالون],data[‎التاريخ],G20,data[النشاط],$I$8),NA())","v":{"$error":"#N/A"}},{"$f":"IFERROR(AVERAGEIFS(data[¢/ميل],data[‎التاريخ],G20,data[النشاط],$J$8),NA())","v":{"$error":"#N/A"}}]
[{"$nulls":5},12,"2012-05-12",{"$f":"SUMIFS(data[الأميال],data[‎التاريخ],G21,data[النشاط],$H$8)","v":0},{"$f":"IFERROR(AVERAGEIFS(data[ميل لكل جالون],data[‎التاريخ],G21,data[النشاط],$I$8),NA())","v":{"$error":"#N/A"}},{"$f":"IFERROR(AVERAGEIFS(data[¢/ميل],data[‎التاريخ],G21,data[النشاط],$J$8),NA())","v":{"$error":"#N/A"}}]
[{"$nulls":5},13,"2012-05-13",{"$f":"SUMIFS(data[الأميال],data[‎التاريخ],G22,data[النشاط],$H$8)","v":0},{"$f":"IFERROR(AVERAGEIFS(data[ميل لكل جالون],data[‎التاريخ],G22,data[النشاط],$I$8),NA())","v":{"$error":"#N/A"}},{"$f":"IFERROR(AVERAGEIFS(data[¢/ميل],data[‎التاريخ],G22,data[النشاط],$J$8),NA())","v":{"$error":"#N/A"}}]
[{"$nulls":5},14,"2012-05-14",{"$f":"SUMIFS(data[الأميال],data[‎التاريخ],G23,data[النشاط],$H$8)","v":0},{"$f":"IFERROR(AVERAGEIFS(data[ميل لكل جالون],data[‎التاريخ],G23,data[النشاط],$I$8),NA())","v":{"$error":"#N/A"}},{"$f":"IFERROR(AVERAGEIFS(data[¢/ميل],data[‎التاريخ],G23,data[النشاط],$J$8),NA())","v":{"$error":"#N/A"}}]
[{"$nulls":5},15,"2012-05-15",{"$f":"SUMIFS(data[الأميال],data[‎التاريخ],G24,data[النشاط],$H$8)","v":0},{"$f":"IFERROR(AVERAGEIFS(data[ميل لكل جالون],data[‎التاريخ],G24,data[النشاط],$I$8),NA())","v":{"$error":"#N/A"}},{"$f":"IFERROR(AVERAGEIFS(data[¢/ميل],data[‎التاريخ],G24,data[النشاط],$J$8),NA())","v":{"$error":"#N/A"}}]
[{"$nulls":5},16,"2012-05-16",{"$f":"SUMIFS(data[الأميال],data[‎التاريخ],G25,data[النشاط],$H$8)","v":0},{"$f":"IFERROR(AVERAGEIFS(data[ميل لكل جالون],data[‎التاريخ],G25,data[النشاط],$I$8),NA())","v":{"$error":"#N/A"}},{"$f":"IFERROR(AVERAGEIFS(data[¢/ميل],data[‎التاريخ],G25,data[النشاط],$J$8),NA())","v":{"$error":"#N/A"}}]
[{"$nulls":5},17,"2012-05-17",{"$f":"SUMIFS(data[الأميال],data[‎التاريخ],G26,data[النشاط],$H$8)","v":0},{"$f":"IFERROR(AVERAGEIFS(data[ميل لكل جالون],data[‎التاريخ],G26,data[النشاط],$I$8),NA())","v":{"$error":"#N/A"}},{"$f":"IFERROR(AVERAGEIFS(data[¢/ميل],data[‎التاريخ],G26,data[النشاط],$J$8),NA())","v":{"$error":"#N/A"}}]
[{"$nulls":5},18,"2012-05-18",{"$f":"SUMIFS(data[الأميال],data[‎التاريخ],G27,data[النشاط],$H$8)","v":0},{"$f":"IFERROR(AVERAGEIFS(data[ميل لكل جالون],data[‎التاريخ],G27,data[النشاط],$I$8),NA())","v":{"$error":"#N/A"}},{"$f":"IFERROR(AVERAGEIFS(data[¢/ميل],data[‎التاريخ],G27,data[النشاط],$J$8),NA())","v":{"$error":"#N/A"}}]
[{"$nulls":5},19,"2012-05-19",{"$f":"SUMIFS(data[الأميال],data[‎التاريخ],G28,data[النشاط],$H$8)","v":0},{"$f":"IFERROR(AVERAGEIFS(data[ميل لكل جالون],data[‎التاريخ],G28,data[النشاط],$I$8),NA())","v":{"$error":"#N/A"}},{"$f":"IFERROR(AVERAGEIFS(data[¢/ميل],data[‎التاريخ],G28,data[النشاط],$J$8),NA())","v":{"$error":"#N/A"}}]
[{"$nulls":5},20,"2012-05-20",{"$f":"SUMIFS(data[الأميال],data[‎التاريخ],G29,data[النشاط],$H$8)","v":0},{"$f":"IFERROR(AVERAGEIFS(data[ميل لكل جالون],data[‎التاريخ],G29,data[النشاط],$I$8),NA())","v":{"$error":"#N/A"}},{"$f":"IFERROR(AVERAGEIFS(data[¢/ميل],data[‎التاريخ],G29,data[النشاط],$J$8),NA())","v":{"$error":"#N/A"}}]
[{"$nulls":5},21,"2012-05-21",{"$f":"SUMIFS(data[الأميال],data[‎التاريخ],G30,data[النشاط],$H$8)","v":0},{"$f":"IFERROR(AVERAGEIFS(data[ميل لكل جالون],data[‎التاريخ],G30,data[النشاط],$I$8),NA())","v":{"$error":"#N/A"}},{"$f":"IFERROR(AVERAGEIFS(data[¢/ميل],data[‎التاريخ],G30,data[النشاط],$J$8),NA())","v":{"$error":"#N/A"}}]
[{"$nulls":5},22,"2012-05-22",{"$f":"SUMIFS(data[الأميال],data[‎التاريخ],G31,data[النشاط],$H$8)","v":0},{"$f":"IFERROR(AVERAGEIFS(data[ميل لكل جالون],data[‎التاريخ],G31,data[النشاط],$I$8),NA())","v":{"$error":"#N/A"}},{"$f":"IFERROR(AVERAGEIFS(data[¢/ميل],data[‎التاريخ],G31,data[النشاط],$J$8),NA())","v":{"$error":"#N/A"}}]
[{"$nulls":5},23,"2012-05-23",{"$f":"SUMIFS(data[الأميال],data[‎التاريخ],G32,data[النشاط],$H$8)","v":0},{"$f":"IFERROR(AVERAGEIFS(data[ميل لكل جالون],data[‎التاريخ],G32,data[النشاط],$I$8),NA())","v":{"$error":"#N/A"}},{"$f":"IFERROR(AVERAGEIFS(data[¢/ميل],data[‎التاريخ],G32,data[النشاط],$J$8),NA())","v":{"$error":"#N/A"}}]
[{"$nulls":5},24,"2012-05-24",{"$f":"SUMIFS(data[الأميال],data[‎التاريخ],G33,data[النشاط],$H$8)","v":0},{"$f":"IFERROR(AVERAGEIFS(data[ميل لكل جالون],data[‎التاريخ],G33,data[النشاط],$I$8),NA())","v":{"$error":"#N/A"}},{"$f":"IFERROR(AVERAGEIFS(data[¢/ميل],data[‎التاريخ],G33,data[النشاط],$J$8),NA())","v":{"$error":"#N/A"}}]
[{"$nulls":5},25,"2012-05-25",{"$f":"SUMIFS(data[الأميال],data[‎التاريخ],G34,data[النشاط],$H$8)","v":0},{"$f":"IFERROR(AVERAGEIFS(data[ميل لكل جالون],data[‎التاريخ],G34,data[النشاط],$I$8),NA())","v":{"$error":"#N/A"}},{"$f":"IFERROR(AVERAGEIFS(data[¢/ميل],data[‎التاريخ],G34,data[النشاط],$J$8),NA())","v":{"$error":"#N/A"}}]
[{"$nulls":5},26,"2012-05-26",{"$f":"SUMIFS(data[الأميال],data[‎التاريخ],G35,data[النشاط],$H$8)","v":0},{"$f":"IFERROR(AVERAGEIFS(data[ميل لكل جالون],data[‎التاريخ],G35,data[النشاط],$I$8),NA())","v":{"$error":"#N/A"}},{"$f":"IFERROR(AVERAGEIFS(data[¢/ميل],data[‎التاريخ],G35,data[النشاط],$J$8),NA())","v":{"$error":"#N/A"}}]
[{"$nulls":5},27,"2012-05-27",{"$f":"SUMIFS(data[الأميال],data[‎التاريخ],G36,data[النشاط],$H$8)","v":0},{"$f":"IFERROR(AVERAGEIFS(data[ميل لكل جالون],data[‎التاريخ],G36,data[النشاط],$I$8),NA())","v":{"$error":"#N/A"}},{"$f":"IFERROR(AVERAGEIFS(data[¢/ميل],data[‎التاريخ],G36,data[النشاط],$J$8),NA())","v":{"$error":"#N/A"}}]
[{"$nulls":5},28,"2012-05-28",{"$f":"SUMIFS(data[الأميال],data[‎التاريخ],G37,data[النشاط],$H$8)","v":0},{"$f":"IFERROR(AVERAGEIFS(data[ميل لكل جالون],data[‎التاريخ],G37,data[النشاط],$I$8),NA())","v":{"$error":"#N/A"}},{"$f":"IFERROR(AVERAGEIFS(data[¢/ميل],data[‎التاريخ],G37,data[النشاط],$J$8),NA())","v":{"$error":"#N/A"}}]
[{"$nulls":5},29,"2012-05-29",{"$f":"SUMIFS(data[الأميال],data[‎التاريخ],G38,data[النشاط],$H$8)","v":0},{"$f":"IFERROR(AVERAGEIFS(data[ميل لكل جالون],data[‎التاريخ],G38,data[النشاط],$I$8),NA())","v":{"$error":"#N/A"}},{"$f":"IFERROR(AVERAGEIFS(data[¢/ميل],data[‎التاريخ],G38,data[النشاط],$J$8),NA())","v":{"$error":"#N/A"}}]
[{"$nulls":5},30,"2012-05-30",{"$f":"SUMIFS(data[الأميال],data[‎التاريخ],G39,data[النشاط],$H$8)","v":0},{"$f":"IFERROR(AVERAGEIFS(data[ميل لكل جالون],data[‎التاريخ],G39,data[النشاط],$I$8),NA())","v":{"$error":"#N/A"}},{"$f":"IFERROR(AVERAGEIFS(data[¢/ميل],data[‎التاريخ],G39,data[النشاط],$J$8),NA())","v":{"$error":"#N/A"}}]
[{"$nulls":5},31,"2012-05-31",{"$f":"SUMIFS(data[الأميال],data[‎التاريخ],G40,data[النشاط],$H$8)","v":0},{"$f":"IFERROR(AVERAGEIFS(data[ميل لكل جالون],data[‎التاريخ],G40,data[النشاط],$I$8),NA())","v":{"$error":"#N/A"}},{"$f":"IFERROR(AVERAGEIFS(data[¢/ميل],data[‎التاريخ],G40,data[النشاط],$J$8),NA())","v":{"$error":"#N/A"}}]
[{"$nulls":5},32,"2012-06-01",{"$f":"SUMIFS(data[الأميال],data[‎التاريخ],G41,data[النشاط],$H$8)","v":0},{"$f":"IFERROR(AVERAGEIFS(data[ميل لكل جالون],data[‎التاريخ],G41,data[النشاط],$I$8),NA())","v":{"$error":"#N/A"}},{"$f":"IFERROR(AVERAGEIFS(data[¢/ميل],data[‎التاريخ],G41,data[النشاط],$J$8),NA())","v":{"$error":"#N/A"}}]
[{"$nulls":5},33,"2012-06-02",{"$f":"SUMIFS(data[الأميال],data[‎التاريخ],G42,data[النشاط],$H$8)","v":0},{"$f":"IFERROR(AVERAGEIFS(data[ميل لكل جالون],data[‎التاريخ],G42,data[النشاط],$I$8),NA())","v":{"$error":"#N/A"}},{"$f":"IFERROR(AVERAGEIFS(data[¢/ميل],data[‎التاريخ],G42,data[النشاط],$J$8),NA())","v":{"$error":"#N/A"}}]
[{"$nulls":5},34,{"$f":"G42+1","v":"2012-06-03"},{"$f":"SUMIFS(data[الأميال],data[‎التاريخ],G43,data[النشاط],$H$8)","v":0},{"$f":"IFERROR(AVERAGEIFS(data[ميل لكل جالون],data[‎التاريخ],G43,data[النشاط],$I$8),NA())","v":{"$error":"#N/A"}},{"$f":"IFERROR(AVERAGEIFS(data[¢/ميل],data[‎التاريخ],G43,data[النشاط],$J$8),NA())","v":{"$error":"#N/A"}}]
[{"$nulls":5},35,"2012-06-04",{"$f":"SUMIFS(data[الأميال],data[‎التاريخ],G44,data[النشاط],$H$8)","v":0},{"$f":"IFERROR(AVERAGEIFS(data[ميل لكل جالون],data[‎التاريخ],G44,data[النشاط],$I$8),NA())","v":{"$error":"#N/A"}},{"$f":"IFERROR(AVERAGEIFS(data[¢/ميل],data[‎التاريخ],G44,data[النشاط],$J$8),NA())","v":{"$error":"#N/A"}}]
[{"$nulls":5},36,"2012-06-05",{"$f":"SUMIFS(data[الأميال],data[‎التاريخ],G45,data[النشاط],$H$8)","v":0},{"$f":"IFERROR(AVERAGEIFS(data[ميل لكل جالون],data[‎التاريخ],G45,data[النشاط],$I$8),NA())","v":{"$error":"#N/A"}},{"$f":"IFERROR(AVERAGEIFS(data[¢/ميل],data[‎التاريخ],G45,data[النشاط],$J$8),NA())","v":{"$error":"#N/A"}}]
[{"$nulls":5},37,"2012-06-06",{"$f":"SUMIFS(data[الأميال],data[‎التاريخ],G46,data[النشاط],$H$8)","v":0},{"$f":"IFERROR(AVERAGEIFS(data[ميل لكل جالون],data[‎التاريخ],G46,data[النشاط],$I$8),NA())","v":{"$error":"#N/A"}},{"$f":"IFERROR(AVERAGEIFS(data[¢/ميل],data[‎التاريخ],G46,data[النشاط],$J$8),NA())","v":{"$error":"#N/A"}}]
[{"$nulls":5},38,"2012-06-07",{"$f":"SUMIFS(data[الأميال],data[‎التاريخ],G47,data[النشاط],$H$8)","v":0},{"$f":"IFERROR(AVERAGEIFS(data[ميل لكل جالون],data[‎التاريخ],G47,data[النشاط],$I$8),NA())","v":{"$error":"#N/A"}},{"$f":"IFERROR(AVERAGEIFS(data[¢/ميل],data[‎التاريخ],G47,data[النشاط],$J$8),NA())","v":{"$error":"#N/A"}}]
[{"$nulls":5},39,"2012-06-08",{"$f":"SUMIFS(data[الأميال],data[‎التاريخ],G48,data[النشاط],$H$8)","v":0},{"$f":"IFERROR(AVERAGEIFS(data[ميل لكل جالون],data[‎التاريخ],G48,data[النشاط],$I$8),NA())","v":{"$error":"#N/A"}},{"$f":"IFERROR(AVERAGEIFS(data[¢/ميل],data[‎التاريخ],G48,data[النشاط],$J$8),NA())","v":{"$error":"#N/A"}}]
[{"$nulls":5},40,"2012-06-09",{"$f":"SUMIFS(data[الأميال],data[‎التاريخ],G49,data[النشاط],$H$8)","v":0},{"$f":"IFERROR(AVERAGEIFS(data[ميل لكل جالون],data[‎التاريخ],G49,data[النشاط],$I$8),NA())","v":{"$error":"#N/A"}},{"$f":"IFERROR(AVERAGEIFS(data[¢/ميل],data[‎التاريخ],G49,data[النشاط],$J$8),NA())","v":{"$error":"#N/A"}}]
[{"$nulls":5},41,"2012-06-10",{"$f":"SUMIFS(data[الأميال],data[‎التاريخ],G50,data[النشاط],$H$8)","v":0},{"$f":"IFERROR(AVERAGEIFS(data[ميل لكل جالون],data[‎التاريخ],G50,data[النشاط],$I$8),NA())","v":{"$error":"#N/A"}},{"$f":"IFERROR(AVERAGEIFS(data[¢/ميل],data[‎التاريخ],G50,data[النشاط],$J$8),NA())","v":{"$error":"#N/A"}}]
[{"$nulls":5},42,"2012-06-11",{"$f":"SUMIFS(data[الأميال],data[‎التاريخ],G51,data[النشاط],$H$8)","v":0},{"$f":"IFERROR(AVERAGEIFS(data[ميل لكل جالون],data[‎التاريخ],G51,data[النشاط],$I$8),NA())","v":{"$error":"#N/A"}},{"$f":"IFERROR(AVERAGEIFS(data[¢/ميل],data[‎التاريخ],G51,data[النشاط],$J$8),NA())","v":{"$error":"#N/A"}}]
[{"$nulls":5},43,"2012-06-12",{"$f":"SUMIFS(data[الأميال],data[‎التاريخ],G52,data[النشاط],$H$8)","v":0},{"$f":"IFERROR(AVERAGEIFS(data[ميل لكل جالون],data[‎التاريخ],G52,data[النشاط],$I$8),NA())","v":{"$error":"#N/A"}},{"$f":"IFERROR(AVERAGEIFS(data[¢/ميل],data[‎التاريخ],G52,data[النشاط],$J$8),NA())","v":{"$error":"#N/A"}}]
[{"$nulls":5},44,"2012-06-13",{"$f":"SUMIFS(data[الأميال],data[‎التاريخ],G53,data[النشاط],$H$8)","v":0},{"$f":"IFERROR(AVERAGEIFS(data[ميل لكل جالون],data[‎التاريخ],G53,data[النشاط],$I$8),NA())","v":{"$error":"#N/A"}},{"$f":"IFERROR(AVERAGEIFS(data[¢/ميل],data[‎التاريخ],G53,data[النشاط],$J$8),NA())","v":{"$error":"#N/A"}}]
[{"$nulls":5},45,"2012-06-14",{"$f":"SUMIFS(data[الأميال],data[‎التاريخ],G54,data[النشاط],$H$8)","v":0},{"$f":"IFERROR(AVERAGEIFS(data[ميل لكل جالون],data[‎التاريخ],G54,data[النشاط],$I$8),NA())","v":{"$error":"#N/A"}},{"$f":"IFERROR(AVERAGEIFS(data[¢/ميل],data[‎التاريخ],G54,data[النشاط],$J$8),NA())","v":{"$error":"#N/A"}}]
[{"$nulls":5},46,"2012-06-15",{"$f":"SUMIFS(data[الأميال],data[‎التاريخ],G55,data[النشاط],$H$8)","v":0},{"$f":"IFERROR(AVERAGEIFS(data[ميل لكل جالون],data[‎التاريخ],G55,data[النشاط],$I$8),NA())","v":{"$error":"#N/A"}},{"$f":"IFERROR(AVERAGEIFS(data[¢/ميل],data[‎التاريخ],G55,data[النشاط],$J$8),NA())","v":{"$error":"#N/A"}}]
[{"$nulls":5},47,"2012-06-16",{"$f":"SUMIFS(data[الأميال],data[‎التاريخ],G56,data[النشاط],$H$8)","v":0},{"$f":"IFERROR(AVERAGEIFS(data[ميل لكل جالون],data[‎التاريخ],G56,data[النشاط],$I$8),NA())","v":{"$error":"#N/A"}},{"$f":"IFERROR(AVERAGEIFS(data[¢/ميل],data[‎التاريخ],G56,data[النشاط],$J$8),NA())","v":{"$error":"#N/A"}}]
[{"$nulls":5},48,"2012-06-17",{"$f":"SUMIFS(data[الأميال],data[‎التاريخ],G57,data[النشاط],$H$8)","v":0},{"$f":"IFERROR(AVERAGEIFS(data[ميل لكل جالون],data[‎التاريخ],G57,data[النشاط],$I$8),NA())","v":{"$error":"#N/A"}},{"$f":"IFERROR(AVERAGEIFS(data[¢/ميل],data[‎التاريخ],G57,data[النشاط],$J$8),NA())","v":{"$error":"#N/A"}}]
[{"$nulls":5},49,"2012-06-18",{"$f":"SUMIFS(data[الأميال],data[‎التاريخ],G58,data[النشاط],$H$8)","v":0},{"$f":"IFERROR(AVERAGEIFS(data[ميل لكل جالون],data[‎التاريخ],G58,data[النشاط],$I$8),NA())","v":{"$error":"#N/A"}},{"$f":"IFERROR(AVERAGEIFS(data[¢/ميل],data[‎التاريخ],G58,data[النشاط],$J$8),NA())","v":{"$error":"#N/A"}}]
[{"$nulls":5},50,"2012-06-19",{"$f":"SUMIFS(data[الأميال],data[‎التاريخ],G59,data[النشاط],$H$8)","v":0},{"$f":"IFERROR(AVERAGEIFS(data[ميل لكل جالون],data[‎التاريخ],G59,data[النشاط],$I$8),NA())","v":{"$error":"#N/A"}},{"$f":"IFERROR(AVERAGEIFS(data[¢/ميل],data[‎التاريخ],G59,data[النشاط],$J$8),NA())","v":{"$error":"#N/A"}}]
[{"$nulls":5},51,"2012-06-20",{"$f":"SUMIFS(data[الأميال],data[‎التاريخ],G60,data[النشاط],$H$8)","v":0},{"$f":"IFERROR(AVERAGEIFS(data[ميل لكل جالون],data[‎التاريخ],G60,data[النشاط],$I$8),NA())","v":{"$error":"#N/A"}},{"$f":"IFERROR(AVERAGEIFS(data[¢/ميل],data[‎التاريخ],G60,data[النشاط],$J$8),NA())","v":{"$error":"#N/A"}}]
[{"$nulls":5},52,"2012-06-21",{"$f":"SUMIFS(data[الأميال],data[‎التاريخ],G61,data[النشاط],$H$8)","v":0},{"$f":"IFERROR(AVERAGEIFS(data[ميل لكل جالون],data[‎التاريخ],G61,data[النشاط],$I$8),NA())","v":{"$error":"#N/A"}},{"$f":"IFERROR(AVERAGEIFS(data[¢/ميل],data[‎التاريخ],G61,data[النشاط],$J$8),NA())","v":{"$error":"#N/A"}}]
[{"$nulls":5},53,"2012-06-22",{"$f":"SUMIFS(data[الأميال],data[‎التاريخ],G62,data[النشاط],$H$8)","v":0},{"$f":"IFERROR(AVERAGEIFS(data[ميل لكل جالون],data[‎التاريخ],G62,data[النشاط],$I$8),NA())","v":{"$error":"#N/A"}},{"$f":"IFERROR(AVERAGEIFS(data[¢/ميل],data[‎التاريخ],G62,data[النشاط],$J$8),NA())","v":{"$error":"#N/A"}}]
[{"$nulls":5},54,"2012-06-23",{"$f":"SUMIFS(data[الأميال],data[‎التاريخ],G63,data[النشاط],$H$8)","v":0},{"$f":"IFERROR(AVERAGEIFS(data[ميل لكل جالون],data[‎التاريخ],G63,data[النشاط],$I$8),NA())","v":{"$error":"#N/A"}},{"$f":"IFERROR(AVERAGEIFS(data[¢/ميل],data[‎التاريخ],G63,data[النشاط],$J$8),NA())","v":{"$error":"#N/A"}}]
[{"$nulls":5},55,"2012-06-24",{"$f":"SUMIFS(data[الأميال],data[‎التاريخ],G64,data[النشاط],$H$8)","v":0},{"$f":"IFERROR(AVERAGEIFS(data[ميل لكل جالون],data[‎التاريخ],G64,data[النشاط],$I$8),NA())","v":{"$error":"#N/A"}},{"$f":"IFERROR(AVERAGEIFS(data[¢/ميل],data[‎التاريخ],G64,data[النشاط],$J$8),NA())","v":{"$error":"#N/A"}}]
[{"$nulls":5},56,"2012-06-25",{"$f":"SUMIFS(data[الأميال],data[‎التاريخ],G65,data[النشاط],$H$8)","v":0},{"$f":"IFERROR(AVERAGEIFS(data[ميل لكل جالون],data[‎التاريخ],G65,data[النشاط],$I$8),NA())","v":{"$error":"#N/A"}},{"$f":"IFERROR(AVERAGEIFS(data[¢/ميل],data[‎التاريخ],G65,data[النشاط],$J$8),NA())","v":{"$error":"#N/A"}}]
[{"$nulls":5},57,"2012-06-26",{"$f":"SUMIFS(data[الأميال],data[‎التاريخ],G66,data[النشاط],$H$8)","v":0},{"$f":"IFERROR(AVERAGEIFS(data[ميل لكل جالون],data[‎التاريخ],G66,data[النشاط],$I$8),NA())","v":{"$error":"#N/A"}},{"$f":"IFERROR(AVERAGEIFS(data[¢/ميل],data[‎التاريخ],G66,data[النشاط],$J$8),NA())","v":{"$error":"#N/A"}}]
[{"$nulls":5},58,"2012-06-27",{"$f":"SUMIFS(data[الأميال],data[‎التاريخ],G67,data[النشاط],$H$8)","v":0},{"$f":"IFERROR(AVERAGEIFS(data[ميل لكل جالون],data[‎التاريخ],G67,data[النشاط],$I$8),NA())","v":{"$error":"#N/A"}},{"$f":"IFERROR(AVERAGEIFS(data[¢/ميل],data[‎التاريخ],G67,data[النشاط],$J$8),NA())","v":{"$error":"#N/A"}}]
[{"$nulls":5},59,"2012-06-28",{"$f":"SUMIFS(data[الأميال],data[‎التاريخ],G68,data[النشاط],$H$8)","v":0},{"$f":"IFERROR(AVERAGEIFS(data[ميل لكل جالون],data[‎التاريخ],G68,data[النشاط],$I$8),NA())","v":{"$error":"#N/A"}},{"$f":"IFERROR(AVERAGEIFS(data[¢/ميل],data[‎التاريخ],G68,data[النشاط],$J$8),NA())","v":{"$error":"#N/A"}}]
[{"$nulls":5},60,"2012-06-29",{"$f":"SUMIFS(data[الأميال],data[‎التاريخ],G69,data[النشاط],$H$8)","v":0},{"$f":"IFERROR(AVERAGEIFS(data[ميل لكل جالون],data[‎التاريخ],G69,data[النشاط],$I$8),NA())","v":{"$error":"#N/A"}},{"$f":"IFERROR(AVERAGEIFS(data[¢/ميل],data[‎التاريخ],G69,data[النشاط],$J$8),NA())","v":{"$error":"#N/A"}}]